fUST/lending_fUST_20250606
["ID","MTS","AMOUNT","RATE_DAILY","PERIOD"]
[364670762,1749193837208,-440.0,0.00023286,2]
[364670763,1749193837221,-440.0,0.00023286,2]
[364670764,1749193837234,-298.04696269,0.00023287,2]
[364670765,1749193837246,-445.96666369,0.00023287,2]
[364670766,1749193837259,-372.22,0.00023287,2]
[364670767,1749193837273,-440.0,0.00023287,2]
[364670768,1749193837287,-440.0,0.00023287,2]
[364670769,1749193837300,-430.0,0.00023287,2]
[364670770,1749193837313,-389.81156976,0.00023287,2]
[364670771,1749193837325,-280.36128084,0.00023287,2]
[364670772,1749193837336,-440.0,0.00023287,2]
[364670773,1749193837347,-440.0,0.00023287,2]
[364670774,1749193837358,-440.0,0.00023287,2]
[364670775,1749193837371,-440.0,0.00023287,2]
[364670776,1749193837383,-440.0,0.00023287,2]
[364670777,1749193837395,-809.11,0.00023287,2]
[364670778,1749193837409,-440.0,0.00023287,2]
[364670779,1749193837420,-150.0,0.00023315,2]
[364670780,1749193837433,-648.49201782,0.00023366,30]
[364670781,1749193837446,-212.03880349,0.000234,9]
[364670782,1749193837458,-326.81485453,0.00023561,2]
[364670783,1749193837469,-268.22574546,0.00023561,2]
[364670785,1749193837481,-179.79933602,0.00023561,2]
[364670786,1749193837493,-558.31992226,0.00023561,2]
[364670787,1749193837505,-260.96,0.00023561,2]
[364670788,1749193837516,-440.0,0.00023561,2]
[364670789,1749193837526,-440.0,0.00023561,2]
[364670790,1749193837537,-809.11,0.00023561,2]
[364670792,1749193837548,-5000.0,0.00023705,2]
[364670793,1749193837559,-212.03880349,0.00023775,9]
[364670794,1749193837569,-440.0,0.00023835,2]
[364670795,1749193837580,-440.0,0.00023835,2]
[364670796,1749193837593,-809.11,0.00023835,2]
[364670797,1749193837605,-188.79261,0.00023895,3]
[364670798,1749193837616,-5000.0,0.00024,2]
[364670799,1749193837627,-250.5,0.00024,2]
[364670800,1749193837639,-10000.0,0.00024,24]
[364670801,1749193837650,-440.0,0.00024109,2]
[364670802,1749193837661,-250.05538422,0.00024109,2]
[364670803,1749193837672,-809.11,0.00024109,2]
[364670804,1749193837684,-500.0,0.00024117,2]
[364670805,1749193837695,-165.83884861,0.00024117,2]
[364670806,1749193837706,-151.0,0.00024117,2]
[364670807,1749193837718,-200.25067788,0.00024117,2]
[364670808,1749193837729,-630.49658833,0.00024144,2]
[364670809,1749193837740,-151.0,0.00024144,2]
[364670810,1749193837751,-212.03880349,0.0002415,10]
[364670811,1749193837763,-202.33422519,0.00024172,2]
[364670812,1749193837774,-5000.0,0.00024253,2]
[364670813,1749193837786,-6578.57072828,0.00024298,2]
[364670814,1749193837797,-2000.0,0.000243,2]
[364670815,1749193837808,-731.58,0.000243,2]
[364670816,1749193837819,-405.0,0.00024346,2]
[364670817,1749193837831,-502.45807956,0.00024373,2]
[364670818,1749193837844,-159.87231574,0.00024373,2]
[364670819,1749193837855,-500.0,0.00024373,2]
[364670820,1749193837867,-500.0,0.00024373,2]
[364670821,1749193837877,-600.0,0.00024373,2]
[364670822,1749193837889,-500.0,0.00024373,2]
[364670823,1749193837902,-2122.56145694,0.00024379,5]
[364670824,1749193837913,-440.0,0.00024383,2]
[364670825,1749193837924,-809.11,0.00024383,2]
[364670826,1749193837936,-151.0,0.00024385,7]
[364670827,1749193837947,-151.0,0.00024385,7]
[364670828,1749193837960,-151.0,0.00024385,7]
[364670829,1749193837970,-151.0,0.00024385,7]
[364670830,1749193837982,-151.0,0.00024385,7]
[364670831,1749193837994,-297.3304,0.00024385,7]
[364670832,1749193838005,-151.0,0.00024385,7]
[364670833,1749193838017,-151.0,0.00024385,7]
[364670834,1749193838028,-151.0,0.00024385,7]
[364670835,1749193838039,-151.0,0.00024385,7]
[364670836,1749193838050,-151.0,0.00024385,7]
[364670837,1749193838061,-151.0,0.00024385,7]
[364670838,1749193838073,-151.0,0.00024385,7]
[364670839,1749193838084,-151.0,0.00024385,7]
[364670840,1749193838096,-423.83542519,0.00024385,3]
[364670841,1749193838107,-489.28,0.00024388,3]
[364670842,1749193838118,-244.64,0.00024388,3]
[364670843,1749193838129,-733.96,0.00024388,3]
[364670844,1749193838268,-333.83684969,0.00024397,2]
[364670845,1749193838288,-151.0,0.00024398,7]
[364670846,1749193838300,-151.0,0.00024398,7]
[364670847,1749193838310,-151.0,0.00024398,7]
[364670848,1749193838320,-151.0,0.00024398,7]
[364670849,1749193838330,-151.0,0.00024398,7]
[364670850,1749193838340,-151.0,0.00024398,7]
[364670851,1749193838351,-154.376804,0.00024398,7]
[364670852,1749193838363,-151.0,0.00024398,7]
[364670853,1749193838375,-151.0,0.00024398,7]
[364670854,1749193838385,-151.0,0.00024398,7]
[364670855,1749193838394,-151.0,0.00024398,7]
[364670856,1749193838404,-197.774464,0.00024398,7]
[364670857,1749193838413,-151.0,0.00024398,2]
[364670858,1749193838423,-151.0,0.00024398,2]
[364670859,1749193838432,-151.0,0.00024398,2]
[364670860,1749193838444,-151.0,0.00024398,2]
[364670861,1749193838454,-151.0,0.00024398,2]
[364670862,1749193838464,-151.0,0.00024398,2]
[364670863,1749193838473,-239.556228,0.00024398,2]
[364670864,1749193838483,-244.99687,0.00024398,7]
[364670865,1749193838492,-151.0,0.00024398,7]
[364670866,1749193838502,-151.0,0.00024398,7]
[364670868,1749193838511,-153.85225,0.00024398,7]
[364670869,1749193838520,-151.0,0.00024398,7]
[364670870,1749193838529,-151.0,0.00024398,7]
[364670871,1749193838538,-162.793009,0.00024398,7]
[364670873,1749193838547,-151.0,0.00024398,7]
[364670874,1749193838557,-153.263656,0.00024398,7]
[364670875,1749193838567,-151.0,0.00024398,7]
[364670876,1749193838576,-151.0,0.00024398,7]
[364670877,1749193838586,-151.0,0.00024398,7]
[364670878,1749193838595,-151.0,0.00024398,7]
[364670879,1749193838604,-151.0,0.00024398,7]
[364670880,1749193838613,-151.0,0.00024398,7]
[364670881,1749193838623,-151.0,0.00024398,7]
[364670882,1749193838632,-151.0,0.00024398,7]
[364670883,1749193838641,-151.0,0.00024398,7]
[364670884,1749193838651,-151.0,0.00024398,7]
[364670885,1749193838660,-250.792936,0.00024398,7]
[364670886,1749193838669,-151.0,0.00024398,7]
[364670887,1749193838678,-151.000001,0.00024398,7]
[364670888,1749193838688,-151.0,0.00024398,7]
[364670889,1749193838697,-151.0,0.00024398,7]
[364670890,1749193838707,-152.141698,0.00024398,7]
[364670891,1749193838716,-153.052853,0.00024398,7]
[364670892,1749193838726,-209.531417,0.00024398,7]
[364670893,1749193838736,-160.0,0.00024398,3]
[364670894,1749193838746,-209.531417,0.00024398,3]
[364670895,1749193838756,-209.531417,0.00024398,7]
[364670896,1749193838765,-282160.89540208,0.00024398,20]
[364670897,1749193838811,-282.06807324,0.00024398,20]
[364670899,1749193839090,-500.0,0.00021915,2]
[364670900,1749193839101,-500.0,0.00021915,2]
[364670901,1749193839111,-400.0053567,0.00021915,2]
[364670902,1749193839120,-500.0,0.00021915,2]
[364670903,1749193839130,-500.0,0.00021915,2]
[364670904,1749193839139,-500.0,0.00021915,2]
[364670905,1749193839149,-500.0,0.00021915,2]
[364670906,1749193839158,-565.42809722,0.00021915,2]
[364670907,1749193839168,-500.0,0.00021915,2]
[364670908,1749193839178,-500.0,0.00021915,2]
[364670909,1749193839188,-500.0,0.00021915,2]
[364670910,1749193839198,-327.31406213,0.00021915,2]
[364670911,1749193839207,-500.0,0.00021915,2]
[364670912,1749193839217,-500.0,0.00021915,2]
[364670913,1749193839226,-500.0,0.00021915,2]
[364670914,1749193839236,-470.72784023,0.00021915,2]
[364670915,1749193839246,-500.0,0.00021915,2]
[364670916,1749193839255,-500.0,0.00021915,2]
[364670917,1749193839265,-500.0,0.00021915,2]
[364670918,1749193839275,-500.0,0.00021915,2]
[364670919,1749193839284,-500.0,0.00021915,2]
[364670920,1749193839294,-500.0,0.00021915,2]
[364670921,1749193839304,-500.0,0.00021915,2]
[364670922,1749193839314,-500.0,0.00021915,2]
[364670923,1749193839323,-470.03276285,0.00021915,2]
[364670924,1749193839333,-500.0,0.00021915,2]
[364670925,1749193839343,-500.0,0.00021915,2]
[364670926,1749193839353,-150619.58651632,0.00024398,20]
[364670927,1749193839368,-521225.94854898,0.00024398,20]
[364670928,1749193839380,-170067.12222511,0.00024398,20]
[364670950,1749193840336,-831.127423,0.00024398,20]
[364670986,1749193843065,-298.04696269,0.00024398,20]
[364671023,1749193846195,-34.7081699,0.00024398,20]
[364671025,1749193863939,411.0,0.00024658,120]
[364671026,1749194129365,170.0,0.000187,2]
[364671028,1749194225439,64.39528848,0.00013699,2]
[364671029,1749194225464,203.76098452,0.00013699,2]
[364671031,1749194442905,4277.0,0.00021918,60]
[364671035,1749194734114,-184.75564798,0.00020187,2]
[364671036,1749194751085,-83.40062502,0.00020187,2]
[364671037,1749194751105,-150.0,0.00020231,2]
[364671038,1749194751127,-181.604043,0.00021054,2]
[364671039,1749194751149,-182.8775316,0.00021082,2]
[364671040,1749194751170,-298.0,0.00021903,2]
[364671041,1749194751190,-3236.09176947,0.00021904,2]
[364671042,1749194825117,-685.65736089,0.00019818,2]
[364671043,1749194825139,-150.0,0.00020627,2]
[364671044,1749194825160,-164.90024096,0.000217,2]
[364671045,1749194825182,-293.0281551,0.000218,2]
[364671046,1749194825204,-300.0,0.00021903,2]
[364671047,1749194825225,-12763.90823053,0.00021904,2]
[364671048,1749194825246,-5134.68311702,0.00021904,2]
[364671049,1749194825268,-500.0,0.00021916,2]
[364671050,1749194825291,-258.59045135,0.00021916,2]
[364671051,1749194825313,-500.0,0.00021916,2]
[364671052,1749194825335,-500.0,0.00021916,2]
[364671053,1749194825358,-274.6065907,0.00021916,2]
[364671054,1749194825380,-486.96085142,0.00021916,2]
[364671055,1749194825403,-425.0694135,0.00021916,2]
[364671056,1749194825428,-500.0,0.00021916,2]
[364671057,1749194825448,-440.0,0.00021917,2]
[364671058,1749194825469,-440.0,0.00021917,2]
[364671059,1749194825490,-430.0,0.00021917,2]
[364671060,1749194825511,-158.77758909,0.00021917,2]
[364671061,1749194828126,-281.22241091,0.00021917,2]
[364671062,1749194828148,-299.08980148,0.00021917,2]
[364671063,1749194833091,-140.91019852,0.00021917,2]
[364671064,1749194833114,-180.5,0.00021917,2]
[364671065,1749194833135,-178.34612137,0.00021917,2]
[364671066,1749194835145,-321.65387863,0.00021917,2]
[364671067,1749194835168,-440.0,0.00021917,2]
[364671068,1749194835194,-107.47131552,0.00021917,2]
[364671069,1749194847077,-327.68261327,0.00021917,2]
[364671070,1749194850121,-54.72607121,0.00021917,2]
[364671071,1749194850144,-440.0,0.00021917,2]
[364671072,1749194850166,-204.97892609,0.00021917,2]
[364671074,1749194965334,-457.10490726,0.00019818,2]
[364671075,1749194965355,-846.45059909,0.0002,2]
[364671126,1749195038065,-127.60414257,0.0002,2]
[364671128,1749195038075,-150.0,0.00020241,2]
[364671130,1749195038084,-300.0,0.00021916,2]
[364671132,1749195038094,-235.02107391,0.00021917,2]
[364671134,1749195038103,-410.0,0.00021917,2]
[364671136,1749195038111,-440.0,0.00021917,2]
[364671138,1749195038120,-440.0,0.00021917,2]
[364671140,1749195038129,-300.4696436,0.00021917,2]
[364671142,1749195038138,-111.12863161,0.00021917,2]
[364671145,1749195038156,-328.87136839,0.00021917,2]
[364671147,1749195038164,-160.63838172,0.00021917,2]
[364671149,1749195038173,-440.0,0.00021917,2]
[364671151,1749195038182,-380.0,0.00021917,2]
[364671152,1749195038191,-440.0,0.00021917,2]
[364671154,1749195038201,-163.62418419,0.00021917,2]
[364671157,1749195038211,-323.74184558,0.00021917,2]
[364671159,1749195038224,-380.0,0.00021917,2]
[364671161,1749195038234,-380.0,0.00021917,2]
[364671163,1749195038243,-380.0,0.00021917,2]
[364671165,1749195038253,-417.8349677,0.00021917,2]
[364671167,1749195038263,-380.0,0.00021917,2]
[364671169,1749195038272,-380.0,0.00021917,2]
[364671171,1749195038282,-380.0,0.00021917,2]
[364671173,1749195038291,-440.0,0.00021917,2]
[364671175,1749195038301,-380.0,0.00021917,2]
[364671177,1749195038311,-380.0,0.00021917,2]
[364671179,1749195038320,-380.0,0.00021917,2]
[364671181,1749195038330,-500.0,0.00021917,2]
[364671183,1749195038339,-380.0,0.00021917,2]
[364671185,1749195038348,-440.0,0.00021917,2]
[364671187,1749195038358,-440.0,0.00021917,2]
[364671189,1749195038368,-440.0,0.00021917,2]
[364671191,1749195038377,-380.0,0.00021917,2]
[364671193,1749195038387,-264.93132917,0.00021917,2]
[364671194,1749195038396,-380.0,0.00021917,2]
[364671196,1749195038405,-847.55,0.00021917,2]
[364671199,1749195038415,-187.79,0.00021917,2]
[364671201,1749195038425,-440.0,0.00021917,2]
[364671203,1749195038434,-440.0,0.00021917,2]
[364671204,1749195038443,-150.0,0.00022081,2]
[364671206,1749195038453,-155.24269048,0.00022091,2]
[364671209,1749195038463,-380.0,0.00022189,2]
[364671211,1749195038473,-183.66782447,0.00022189,2]
[364671212,1749195038483,-380.0,0.00022189,2]
[364671215,1749195038493,-440.0,0.00022189,2]
[364671217,1749195038503,-440.0,0.00022189,2]
[364671219,1749195038512,-440.0,0.0002219,2]
[364671221,1749195038522,-182.496,0.0002219,2]
[364671223,1749195038532,-158.39558315,0.0002219,2]
[364671225,1749195038541,-440.0,0.0002219,2]
[364671227,1749195038551,-440.0,0.0002219,2]
[364671229,1749195038561,-410.0,0.0002219,2]
[364671231,1749195038571,-401.18,0.0002219,2]
[364671233,1749195038582,-313.92,0.0002219,2]
[364671235,1749195038591,-440.0,0.0002219,2]
[364671237,1749195038601,-440.0,0.0002219,2]
[364671239,1749195038610,-440.0,0.0002219,2]
[364671241,1749195038620,-440.0,0.0002219,2]
[364671243,1749195038630,-440.0,0.0002219,2]
[364671245,1749195038640,-440.0,0.0002219,2]
[364671247,1749195038650,-440.0,0.0002219,2]
[364671249,1749195038659,-440.0,0.0002219,2]
[364671251,1749195038669,-440.0,0.0002219,2]
[364671253,1749195038679,-440.0,0.0002219,2]
[364671255,1749195038688,-440.0,0.0002219,2]
[364671257,1749195038697,-440.0,0.00022191,2]
[364671259,1749195038706,-440.0,0.00022191,2]
[364671261,1749195038716,-440.0,0.00022191,2]
[364671263,1749195038725,-440.0,0.00022191,2]
[364671265,1749195038735,-440.0,0.00022191,2]
[364671267,1749195038744,-440.0,0.00022191,2]
[364671269,1749195038754,-440.0,0.00022191,2]
[364671271,1749195038764,-500.0,0.00022191,2]
[364671273,1749195038774,-440.0,0.00022191,2]
[364671275,1749195038783,-440.0,0.00022191,2]
[364671277,1749195038796,-440.0,0.00022191,2]
[364671279,1749195038806,-847.55,0.00022191,2]
[364671281,1749195038815,-440.0,0.00022191,2]
[364671283,1749195038825,-440.0,0.00022191,2]
[364671285,1749195038836,-500.0,0.00022247,2]
[364671287,1749195038845,-160.0,0.00022446,2]
[364671289,1749195038855,-834.50537533,0.00022451,2]
[364671291,1749195038866,-212.976918,0.00022451,2]
[364671293,1749195038876,-423.83542519,0.00022451,2]
[364671295,1749195038885,-160.0,0.00022451,2]
[364671297,1749195038895,-229.52673067,0.00022451,2]
[364671299,1749195038905,-233.68579478,0.00022463,2]
[364671300,1749195038914,-440.0,0.00022463,2]
[364671303,1749195038924,-440.0,0.00022463,2]
[364671305,1749195038934,-341702.08046,0.00022464,2]
[364671307,1749195038944,-440.0,0.00022464,2]
[364671309,1749195038953,-440.0,0.00022464,2]
[364671311,1749195038963,-380.0,0.00022464,2]
[364671313,1749195038973,-440.0,0.00022464,2]
[364671315,1749195038982,-380.0,0.00022464,2]
[364671317,1749195038992,-440.0,0.00022464,2]
[364671319,1749195039001,-380.0,0.00022464,2]
[364671321,1749195039011,-420.0,0.00022464,2]
[364671323,1749195039020,-400.0,0.00022464,2]
[364671325,1749195039030,-380.0,0.00022464,2]
[364671327,1749195039040,-440.0,0.00022464,2]
[364671329,1749195039049,-440.0,0.00022464,2]
[364671331,1749195039059,-418.87063163,0.00022464,2]
[364671333,1749195039068,-440.0,0.00022464,2]
[364671335,1749195039077,-410.85137291,0.00022465,2]
[364671337,1749195039086,-440.0,0.00022465,2]
[364671339,1749195039095,-440.0,0.00022465,2]
[364671341,1749195039105,-440.0,0.00022465,2]
[364671342,1749195039114,-440.0,0.00022465,2]
[364671345,1749195039125,-440.0,0.00022465,2]
[364671346,1749195039134,-440.0,0.00022465,2]
[364671349,1749195039144,-500.0,0.00022465,2]
[364671350,1749195039153,-380.0,0.00022465,2]
[364671353,1749195039163,-380.0,0.00022465,2]
[364671355,1749195039173,-440.0,0.00022465,2]
[364671357,1749195039182,-847.55,0.00022465,2]
[364671359,1749195039192,-440.0,0.00022465,2]
[364671360,1749195039200,-440.0,0.00022465,2]
[364671362,1749195039209,-440.0,0.00022737,2]
[364671364,1749195039220,-440.0,0.00022737,2]
[364671366,1749195039229,-440.0,0.00022738,2]
[364671368,1749195039239,-390.0,0.00022738,2]
[364671370,1749195039248,-301.26,0.00022738,2]
[364671373,1749195039258,-360.0,0.00022738,2]
[364671374,1749195039267,-440.0,0.00022738,2]
[364671377,1749195039277,-440.0,0.00022738,2]
[364671379,1749195039287,-380.0,0.00022739,2]
[364671380,1749195039296,-380.0,0.00022739,2]
[364671382,1749195039306,-380.0,0.00022739,2]
[364671384,1749195039316,-440.0,0.00022739,2]
[364671386,1749195039326,-380.0,0.00022739,2]
[364671389,1749195039336,-387.62072255,0.00022739,2]
[364671391,1749195039345,-440.0,0.00022739,2]
[364671393,1749195039354,-847.55,0.00022739,2]
[364671394,1749195039364,-154.88,0.00022739,2]
[364671396,1749195039374,-440.0,0.00022739,2]
[364671398,1749195039385,-219.16626794,0.000229,8]
[364671401,1749195039395,-440.0,0.00023011,2]
[364671403,1749195039406,-440.0,0.00023011,2]
[364671405,1749195039415,-440.0,0.00023012,2]
[364671407,1749195039425,-291.39901261,0.00023012,2]
[364671409,1749195039435,-152.44581134,0.00023013,2]
[364671411,1749195039444,-847.55,0.00023013,2]
[364671413,1749195039454,-219.1662679,0.00023122,8]
[364671415,1749195039463,-207.4,0.00023157,2]
[364671417,1749195039473,-500.0,0.00023157,2]
[364671419,1749195039483,-500.0,0.00023157,2]
[364671420,1749195039492,-500.0,0.00023157,2]
[364671422,1749195039501,-500.0,0.00023157,2]
[364671424,1749195039511,-181.32987502,0.00023157,2]
[364671427,1749195039521,-440.0,0.00023286,2]
[364671429,1749195039531,-847.55,0.00023287,2]
[364671431,1749195039541,-219.1662679,0.00023344,9]
[364671433,1749195039551,-440.0,0.0002356,2]
[364671435,1749195039561,-847.55,0.00023561,2]
[364671437,1749195039570,-219.1662679,0.00023567,9]
[364671439,1749195039580,-219.1662679,0.00023789,9]
[364671441,1749195039591,-119382.26490456,0.000238,2]
[364671443,1749195039605,-5162.0,0.000238,2]
[364671445,1749195039617,-50357.07688124,0.000238,2]
[364671447,1749195039628,-440.0,0.00023834,2]
[364671449,1749195039638,-847.55,0.00023835,2]
[364671451,1749195039647,-195.810826,0.0002391,3]
[364671453,1749195039657,-10000.0,0.00024,12]
[364671455,1749195039667,-170.24433388,0.00024,5]
[364671457,1749195039677,-219.1662679,0.00024011,10]
[364671459,1749195039686,-440.0,0.00024108,2]
[364671461,1749195039696,-847.55,0.00024109,2]
[364671463,1749195039705,-219.1662679,0.00024233,10]
[364671465,1749195039715,-2000.0,0.000243,2]
[364671467,1749195039724,-658.42,0.000243,2]
[364671469,1749195039734,-1973.57121851,0.00024301,2]
[364671471,1749195039743,-511.22655783,0.00024327,2]
[364671473,1749195039752,-405.0,0.00024354,2]
[364671475,1749195039762,-440.0,0.00024382,2]
[364671477,1749195039772,-847.55,0.00024383,2]
[364671479,1749195039781,-378.95,0.00024391,3]
[364671481,1749195039793,-189.47,0.00024391,3]
[364671483,1749195039803,-568.46,0.00024391,3]
[364671485,1749195039812,-160.0,0.00024394,3]
[364671487,1749195039822,-152.746135,0.00024398,7]
[364671489,1749195039831,-229.52673067,0.00024398,3]
[364671491,1749195039841,-117146.11,0.000244,7]
[364671493,1749195039851,-2031.63,0.000244,7]
[364671495,1749195039861,-489.03,0.000244,7]
[364671497,1749195039872,-28104.63,0.000244,2]
[364671499,1749195039883,-151.0,0.000244,9]
[364671501,1749195039893,-834.50537533,0.000244,7]
[364671503,1749195039903,-778991.60940573,0.00024401,20]
[364672124,1749195046269,-64.47913471,0.00024401,20]
[364672126,1749195046280,-439634.66967822,0.00024401,20]
[364672133,1749195046332,-61573.97151882,0.00024401,20]
[364676763,1749195202929,272.558444,0.00013699,2]
[364676780,1749195299032,523.49324172,0.00024657,120]
[364676787,1749195932136,-290.9340825,0.0002,2]
[364676788,1749195933095,-2440.36657866,0.0002,2]
[364676791,1749196038130,-1087.69933884,0.0002,2]
[364676792,1749196038154,-272.558444,0.00020187,2]
[364676793,1749196038178,-150.0,0.00020969,2]
[364676794,1749196038200,-382.5086556,0.00022113,2]
[364676795,1749196038225,-371.04285288,0.00022189,2]
[364676796,1749196038246,-184.61779033,0.00022189,2]
[364676797,1749196038268,-415.0,0.00022189,2]
[364676798,1749196038294,-182.15453462,0.00022463,2]
[364676799,1749196038315,-160.0,0.00022484,2]
[364676800,1749196038335,-160.0,0.00022484,2]
[364676801,1749196038356,-842.5625,0.00022484,2]
[364676802,1749196038378,-181.506505,0.00022557,2]
[364676803,1749196038399,-304.73660484,0.00022557,2]
[364676804,1749196038422,-150.0,0.00022876,2]
[364676805,1749196038443,-207.4,0.00023157,2]
[364676806,1749196038601,-250.60648377,0.00023814,2]
[364676807,1749196038625,-151.71089825,0.000239,2]
[364676808,1749196038657,-204.54377342,0.000239,10]
[364676809,1749196038682,-195.810826,0.00023912,3]
[364676810,1749196038714,-204.54377342,0.00023967,10]
[364676811,1749196038736,-303.69007627,0.00024,30]
[364676812,1749196048086,-169.30806975,0.00024,30]
[364676813,1749196049092,-225.44974422,0.00024,30]
[364676814,1749196050086,-230.97551942,0.00024,30]
[364676815,1749196052092,-266.96114048,0.00024,30]
[364676816,1749196053145,-905.16740283,0.00024,30]
[364676859,1749196238422,172.17077312,0.00013699,2]
[364676860,1749196238448,83.18869588,0.00013699,2]
[364676887,1749196239648,-255.359469,0.00020187,2]
[364676889,1749196239659,-150.0,0.00021189,2]
[364676892,1749196239673,-203.15773656,0.000219,2]
[364676894,1749196239684,-919.2824566,0.00023177,2]
[364676896,1749196239694,-204.22831503,0.000239,10]
[364676898,1749196239704,-204.22831491,0.00023971,10]
[364676900,1749196239714,-176.229744,0.00023999,3]
[364676902,1749196239724,-151.06,0.00023999,2]
[364676904,1749196239735,-167590.49804703,0.00024,30]
[364676906,1749196239745,-500.0,0.00024,2]
[364676908,1749196239756,-484.75860347,0.00024001,2]
[364676910,1749196239766,-204.22831491,0.00024043,10]
[364676912,1749196239776,-182.496,0.00024107,6]
[364676914,1749196239785,-204.22831491,0.00024114,10]
[364676916,1749196239795,-506.54,0.00024122,7]
[364676918,1749196239805,-204.22831491,0.00024186,10]
[364676920,1749196239815,-204.22831491,0.00024257,10]
[364676922,1749196239824,-1973.57121851,0.00024296,2]
[364676924,1749196239834,-2000.0,0.000243,2]
[364676926,1749196239843,-658.42,0.000243,2]
[364676928,1749196239853,-506.54,0.00024322,4]
[364676930,1749196239862,-204.22831491,0.00024329,11]
[364676932,1749196239872,-405.0,0.00024362,2]
[364676933,1749196239885,-150.0,0.00024362,2]
[364676935,1749196239894,-207.4,0.00024368,2]
[364676937,1749196239904,-2000.0,0.00024383,2]
[364676939,1749196239914,-2000.0,0.00024383,2]
[364676941,1749196239924,-1018.05370026,0.00024383,2]
[364676943,1749196239933,-600.35,0.00024385,2]
[364676945,1749196239943,-378.95,0.00024386,3]
[364676947,1749196239953,-189.47,0.00024386,3]
[364676949,1749196239962,-568.46,0.00024386,3]
[364676952,1749196239972,-212.976918,0.00024394,2]
[364676954,1749196239982,-834.50537533,0.00024394,2]
[364676956,1749196239992,-423.83542519,0.00024394,2]
[364676958,1749196240002,-163.58005635,0.00024395,2]
[364676960,1749196240012,-181.816701,0.00024396,7]
[364676962,1749196240022,-181.816701,0.00024396,7]
[364676964,1749196240032,-181.816701,0.00024396,7]
[364676966,1749196240041,-181.816701,0.00024396,7]
[364676968,1749196240051,-181.816701,0.00024396,7]
[364676970,1749196240061,-181.816701,0.00024396,7]
[364676972,1749196240071,-181.816701,0.00024396,7]
[364676974,1749196240081,-181.816701,0.00024396,7]
[364676975,1749196240092,-181.816701,0.00024396,7]
[364676976,1749196240102,-181.816701,0.00024396,7]
[364676977,1749196240112,-181.816701,0.00024396,7]
[364676978,1749196240122,-181.816701,0.00024396,7]
[364676979,1749196240134,-181.816701,0.00024396,7]
[364676980,1749196240144,-181.816701,0.00024396,7]
[364676981,1749196240154,-181.816701,0.00024396,7]
[364676982,1749196240163,-181.816701,0.00024396,7]
[364676983,1749196240172,-181.816701,0.00024396,7]
[364676984,1749196240182,-181.816701,0.00024396,7]
[364676985,1749196240192,-181.816701,0.00024396,7]
[364676986,1749196240202,-181.816695,0.00024396,7]
[364676987,1749196240215,-151.0,0.00024396,7]
[364676988,1749196240226,-151.0,0.00024396,7]
[364676989,1749196240236,-151.0,0.00024396,7]
[364676990,1749196240251,-151.0,0.00024396,7]
[364676991,1749196240263,-151.0,0.00024396,7]
[364676992,1749196240273,-209.56954,0.00024396,7]
[364676993,1749196240286,-269.923514,0.00024396,7]
[364676994,1749196240301,-151.0,0.00024396,7]
[364676995,1749196240311,-151.0,0.00024396,7]
[364676996,1749196240321,-151.0,0.00024396,7]